bitfinex/quotes_ETHUSD_20250129
["timestamp","ask_amount","ask_price","bid_price","bid_amount"]
[1738181202739,3.21578,3109.7,3108.1,4.338]
[1738181202925,3.21635,3109.2,3108.4,3.21701]
[1738181203222,3.21697,3108.6,3108.1,0.788]
[1738181203424,3.21681,3108.7,3108.1,0.788]
[1738181203593,3.21626,3109.2,3108.1,0.788]
[1738181203919,3.21671,3108.8,3108.1,0.788]
[1738181204137,3.216,3109.5,3108.8,3.21667]
[1738181204304,3.21628,3109.2,3108.5,3.21696]
[1738181204509,4.029,3110.2,3108.8,3.21664]
[1738181204510,3.21605,3109.5,3108.8,3.21664]
[1738181204836,3.21533,3110.1,3108.2,3.21729]
[1738181204837,0.0075,3110.1,3108.2,3.21729]
[1738181205034,3.21481,3110.7,3110.0,3.2154]
[1738181205193,0.33597756,3111.2,3110.6,3.21477]
[1738181205398,0.33597756,3111.2,3108.8,5.39443154]
[1738181205399,0.50362934,3109.8,3109.7,4.55074]
[1738181205633,0.50362934,3109.8,3109.7,8.3856216]
[1738181206139,6.83e-06,3109.8,3109.7,8.3931216]
[1738181206298,3.21463,3110.8,3109.7,1.6198816]
[1738181206497,3.21486,3110.6,3109.7,0.7775]
[1738181206692,3.21555,3109.9,3109.2,0.7985]
[1738181207001,3.21627,3109.2,3108.4,0.7985]
[1738181207227,0.8144,3109.9,3108.4,0.7985]
[1738181207436,3.21597,3109.5,3108.8,3.2166]
[1738181207696,0.8144,3109.9,3108.4,0.7985]
[1738181207925,3.21639,3109.1,3108.4,0.7985]
[1738181208109,0.565,3109.6,3108.4,0.7985]
[1738181208296,3.21684,3108.7,3108.0,4.01238]
[1738181208513,0.55,3109.6,3108.0,4.01238]
[1738181208514,3.21667,3108.9,3108.0,0.7949]
[1738181208709,3.21653,3109.0,3108.0,0.7949]
[1738181208910,3.21653,3109.0,3107.1,3.2234]
[1738181208911,3.2153,3110.2,3109.6,3.21582]
[1738181209154,3.2153,3110.2,3108.6,6.43376]
[1738181209155,4.01466,3110.9,3109.5,0.7805]
[1738181209451,3.21541,3110.1,3109.5,0.7805]
[1738181209656,3.2154,3110.1,3109.1,3.21627]
[1738181209878,3.21571,3109.8,3109.1,3.21628]
[1738181210080,3.21627,3109.2,3109.0,0.7805]
[1738181210386,0.8223,3109.9,3108.5,0.7617]
[1738181210597,0.0075,3109.2,3107.4,0.8141]
[1738181210816,3.21698,3108.5,3107.4,0.8141]
[1738181210967,3.21745,3108.1,3107.4,0.8141]
[1738181211290,3.22457,3108.5,3107.1,0.005]
[1738181211468,0.7969,3109.4,3108.1,0.8267]
[1738181211671,3.21564,3109.8,3108.1,0.8267]
[1738181211847,0.0075,3109.6,3108.1,0.8267]
[1738181212183,3.2164,3109.1,3108.5,3.21691]
[1738181212489,3.2164,3109.1,3108.1,0.8267]
[1738181212490,3.21581,3109.7,3108.2,0.55]
[1738181212786,3.21581,3109.7,3108.1,4.04401]
[1738181212787,3.21583,3109.7,3108.3,0.459401]
[1738181212989,4.084222,3110.9,3108.3,0.459401]
[1738181212990,0.812,3110.8,3108.8,3.21667]
[1738181213187,3.2156,3109.9,3109.2,3.21625]
[1738181213415,3.21566,3109.8,3109.2,3.21625]
[1738181213762,0.565,3110.0,3108.4,0.8154]
[1738181213990,3.21635,3109.2,3108.4,4.03241]
[1738181214361,3.21666,3108.9,3108.4,0.8154]
[1738181214773,3.2164,3109.1,3108.4,4.03247]
[1738181214953,0.8014,3109.8,3108.4,0.8154]
[1738181214954,3.21656,3109.0,3108.4,0.8154]
[1738181215155,3.21679,3108.7,3108.4,0.8154]
[1738181215354,3.21736,3108.2,3107.2,0.8184]
[1738181215553,3.0,3108.7,3107.2,4.03669]
[1738181215749,3.21726,3108.3,3107.6,3.21788]
[1738181215997,3.21738,3108.2,3107.6,3.21788]
[1738181216357,3.21748,3108.1,3107.3,3.21814]
[1738181216558,3.21722,3108.3,3107.3,3.21814]
[1738181216791,3.21784,3107.7,3107.2,0.8184]
[1738181216964,3.22458,3108.4,3107.2,0.8184]
[1738181217172,3.0,3108.3,3107.2,4.03672]
[1738181217487,3.0,3108.5,3107.2,0.8184]
[1738181217657,3.21786,3107.7,3107.2,0.8184]
[1738181218062,3.21683,3108.7,3107.2,0.8184]
[1738181218063,3.21798,3107.6,3107.2,0.8184]
[1738181218265,6.4352,3107.9,3107.1,0.005]
[1738181218465,3.0075,3108.1,3107.1,0.005]
[1738181218466,3.21833,3107.2,3107.1,0.005]
[1738181218661,6.22583,3107.2,3107.1,0.005]
[1738181218870,6.21833,3107.2,3107.1,0.005]
[1738181219286,3.21833,3107.2,3107.1,0.005]
[1738181219519,3.21821,3107.4,3107.1,0.005]
[1738181219659,4.02948,3108.1,3107.1,0.005]
[1738181219861,4.02948,3108.1,3106.5,3.21902]
[1738181219862,3.827,3106.9,3104.7,3.56e-06]
[1738181220063,9.66213,3104.9,3103.6,0.0747765]
[1738181220262,0.8158,3105.0,3103.6,0.0747765]
[1738181220503,3.22162,3104.1,3103.6,0.0747765]
[1738181220683,0.8158,3105.0,3103.6,0.0747765]
[1738181220899,3.21999,3105.6,3104.2,0.754]
[1738181221102,0.1,3106.6,3104.2,3.9754]
[1738181221103,3.22019,3105.5,3104.2,3.9754]
[1738181221426,3.21905,3106.5,3104.9,3.22067]
[1738181221699,3.0,3106.0,3104.5,3.22111]
[1738181221899,3.22005,3105.6,3104.4,0.754]
[1738181222101,0.8158,3106.6,3104.6,3.0]
[1738181222102,4.03482,3106.6,3104.6,3.0]
[1738181222305,3.21928,3106.3,3105.4,0.8044]
[1738181222469,3.21953,3106.1,3105.4,0.8044]
[1738181222663,0.7923,3107.1,3105.4,0.8044]
[1738181222865,4.01079,3107.1,3105.6,3.21994]
[1738181223062,3.21828,3107.3,3106.2,3.21934]
[1738181223266,3.21772,3107.8,3106.8,0.7714]
[1738181223808,0.7923,3108.8,3107.7,3.2178]
[1738181223981,0.65458174,3109.4,3107.8,0.7714]
[1738181223982,3.21656,3109.0,3107.8,0.7714]
[1738181224210,3.21558,3109.9,3107.5,3.21795]
[1738181224211,3.21603,3109.5,3108.3,0.8122]
[1738181224429,0.33613148,3110.1,3108.3,0.8122]
[1738181224430,0.16766254,3108.7,3108.3,0.8122]
[1738181224742,0.16766254,3108.7,3108.6,3.21688]
[1738181224907,0.16766254,3108.7,3108.6,7.59028]
[1738181225104,3.21564,3109.8,3108.8,0.55]
[1738181225404,3.21516,3110.3,3109.5,0.8159]
[1738181225601,3.21508,3110.4,3109.5,0.8159]
[1738181225602,0.869642,3110.5,3109.5,4.03176]
[1738181225908,0.869642,3110.5,3110.0,3.21535]
[1738181226120,0.8129,3111.7,3110.2,4.03304]
[1738181226121,3.21418,3111.3,3110.2,4.03304]
[1738181226307,0.8129,3111.7,3110.2,1.542731]
[1738181226509,3.21375,3111.7,3110.2,1.542731]
[1738181226727,3.21391,3111.5,3110.5,3.77234]
[1738181226923,0.7964,3112.8,3110.2,1.0179]
[1738181227135,0.7964,3112.8,3111.2,3.21419]
[1738181227136,3.21328,3112.1,3111.2,3.21419]
[1738181227297,3.2132,3112.2,3111.2,3.21419]
[1738181227498,3.21309,3112.3,3111.2,3.21419]
[1738181227742,3.21309,3112.3,3111.4,3.21396]
[1738181227913,3.21309,3112.3,3111.4,3.21394]
[1738181228237,3.21275,3112.6,3111.4,3.21396]
[1738181228537,3.21328,3112.1,3111.2,0.456949]
[1738181228739,6.43258,3112.8,3111.0,0.8053]
[1738181228740,3.21356,3111.9,3111.0,0.8053]
[1738181229040,0.015,3112.4,3111.0,0.8053]
[1738181229200,3.2147,3110.8,3109.4,1.42693558]
[1738181229400,3.21479,3110.7,3109.7,3.21565]
[1738181229711,3.21494,3110.5,3109.6,3.21583]
[1738181229917,3.2148,3110.7,3109.4,0.7974]
[1738181230112,0.0075,3110.8,3109.4,0.7974]
[1738181230422,3.21558,3109.9,3108.8,0.8286]
[1738181230606,3.0,3110.3,3108.8,0.8286]
[1738181230806,3.0,3110.1,3108.8,0.8286]
[1738181231000,6.23033,3110.1,3108.8,0.8286]
[1738181231242,3.21543,3110.0,3108.8,0.8286]
[1738181231400,3.21645,3109.1,3108.0,3.21741]
[1738181231626,3.21491,3110.5,3109.2,3.21622]
[1738181231824,3.21491,3110.5,3109.5,0.55]
[1738181231825,3.21501,3110.5,3109.5,0.55]
[1738181232219,3.21512,3110.3,3109.4,0.8193]
[1738181232454,3.0,3110.4,3109.4,0.8193]
[1738181232764,3.21436,3111.1,3109.6,0.015]
[1738181232933,3.21269,3112.7,3110.4,3.21491]
[1738181232934,3.21384,3111.6,3110.4,3.21491]
[1738181233133,0.753,3112.4,3110.6,0.8091]
[1738181233339,3.21375,3111.7,3110.6,0.8091]
[1738181233542,3.21375,3111.7,3110.8,3.21452]
[1738181233725,3.0,3112.2,3111.1,3.21429]
[1738181233922,3.21332,3112.1,3110.9,0.55]
[1738181234236,4.125116,3112.9,3111.5,0.55]
[1738181234237,3.21275,3112.6,3111.5,0.55]
[1738181234449,3.21318,3112.2,3111.5,0.55]
[1738181234639,0.085896,3112.9,3111.4,0.7913]
[1738181234640,3.21326,3112.1,3111.4,0.7913]
[1738181234993,3.21379,3111.6,3111.4,0.7913]
[1738181235122,0.7508,3112.4,3110.9,0.7913]
[1738181235762,3.21369,3111.7,3110.9,0.7913]
[1738181236127,3.0,3112.2,3111.2,3.21416]
[1738181236128,3.21322,3112.2,3111.2,3.21416]
[1738181236330,0.093396,3112.9,3111.5,0.55]
[1738181236331,3.21254,3112.8,3111.5,0.55]
[1738181236626,0.085896,3112.9,3111.5,0.55]
[1738181236627,0.085896,3112.9,3112.6,3.21274]
[1738181236961,0.085896,3112.9,3112.2,0.55]
[1738181237166,0.085896,3112.9,3112.1,0.7667]
[1738181237665,0.085896,3112.9,3112.6,3.2127]
[1738181237822,0.085896,3112.9,3112.7,3.21255]
[1738181238025,0.085896,3112.9,3112.8,3.99314]
[1738181238026,0.035896,3112.9,3112.8,3.99314]
[1738181238464,0.035896,3112.9,3112.8,0.7806]
[1738181240343,3.248326,3112.9,3112.3,0.7537]
[1738181240532,0.035896,3112.9,3112.8,3.21254]
[1738181240833,0.035896,3112.9,3112.8,7.55024]
[1738181241064,0.005,3113.4,3113.3,3.76202]
[1738181241261,0.005,3113.4,3113.3,6.76202]
[1738181241468,0.005,3113.4,3113.3,0.55]
[1738181241661,0.005,3113.4,3113.3,3.21202]
[1738181241879,0.005,3113.4,3113.3,4.411942]
[1738181242042,0.005,3113.4,3113.3,4.387042]
[1738181242241,0.005,3113.4,3113.3,0.5326]
[1738181242762,0.005,3113.4,3112.3,0.37537]
[1738181242763,3.217,3113.4,3112.5,3.21276]
[1738181243080,3.217,3113.4,3112.4,0.8251]
[1738181243081,3.21693,3113.4,3112.4,0.8251]
[1738181243248,3.217,3113.4,3112.4,0.8251]
[1738181243569,3.21233,3113.0,3112.4,0.8251]
[1738181243803,3.21246,3112.9,3112.4,0.8251]
[1738181243933,0.005,3113.4,3112.4,0.8251]
[1738181244248,3.21203,3113.3,3112.5,3.21275]
[1738181244449,3.21218,3113.2,3112.4,0.8251]
[1738181244661,3.21233,3113.0,3112.4,0.8251]
[1738181244864,3.21214,3113.2,3112.4,0.8251]
[1738181245181,0.005,3113.4,3112.6,0.015]
[1738181245336,0.005,3113.4,3113.2,3.21203]
[1738181245537,0.005,3113.4,3111.8,0.1]
[1738181245737,0.005,3113.4,3113.1,3.21216]
[1738181246139,0.005,3113.4,3113.3,4.02982]
[1738181246441,0.005,3113.4,3113.3,0.8178]
[1738181247047,0.005,3113.4,3112.8,3.99401]
[1738181247268,0.005,3113.4,3112.8,0.7815]
[1738181247472,3.21204,3113.3,3112.8,0.7815]
[1738181247639,0.005,3113.4,3112.8,0.7815]
[1738181247851,0.005,3113.4,3113.3,3.21202]
[1738181248047,0.005,3113.4,3113.3,7.098222]
[1738181248280,1e-05,3113.4,3113.3,7.886022]
[1738181248489,0.8174,3115.6,3114.3,3.21098]
[1738181248653,3.21034,3115.0,3114.2,3.21107]
[1738181248854,3.21037,3115.0,3114.2,3.21107]
[1738181249203,3.21037,3115.0,3114.3,3.21098]
[1738181249357,0.8174,3115.6,3114.0,3.0]
[1738181249545,3.21007,3115.2,3114.2,3.21102]
[1738181249750,3.21016,3115.2,3114.4,3.21087]
[1738181249960,3.2102,3115.1,3114.4,3.21087]
[1738181250160,3.2103,3115.0,3114.3,3.2109]
[1738181250374,3.8174,3115.6,3114.1,0.3]
[1738181250584,3.8174,3115.6,3113.8,3.21147]
[1738181250585,0.8174,3115.6,3113.8,3.21147]
[1738181250758,0.8174,3115.6,3112.8,0.2]
[1738181250759,0.8174,3115.6,3114.4,3.2108]
[1738181250958,3.21031,3115.0,3114.3,0.833]
[1738181251159,3.8174,3115.6,3114.3,0.833]
[1738181251160,0.8174,3115.6,3114.6,3.21066]
[1738181251368,3.20942,3115.9,3114.9,3.21029]
[1738181251369,3.20963,3115.7,3114.9,3.21029]
[1738181251551,3.20965,3115.6,3114.9,3.21029]
[1738181251875,3.20985,3115.5,3114.8,3.76047]
[1738181252206,3.12448458,3115.7,3114.8,3.76047]
[1738181252676,3.20934,3115.9,3114.4,3.0075]
[1738181252882,3.20944,3115.8,3115.0,3.21023]
[1738181253458,3.20955,3115.7,3115.0,3.21023]
[1738181253659,3.20955,3115.7,3115.0,3.21017]
[1738181254378,3.20955,3115.7,3114.9,3.76787]
[1738181254580,0.1606725,3116.0,3115.4,3.20978]
[1738181254776,3.20935,3115.9,3115.2,3.21006]
[1738181255090,3.20935,3115.9,3115.0,3.96373]
[1738181255091,0.1606725,3116.0,3115.1,3.21016]
[1738181255295,0.1606725,3116.0,3115.0,0.7535]
[1738181255499,3.21059,3114.7,3114.5,0.7532]
[1738181255685,3.0075,3115.3,3113.5,3.21174]
[1738181255886,0.0075,3115.4,3113.4,0.7532]
[1738181255887,3.21159,3113.8,3113.6,0.396494]
[1738181256088,3.0,3114.5,3112.9,0.7715]
[1738181256317,3.21183,3113.5,3112.9,0.7715]
[1738181256511,3.0,3114.5,3112.9,1.42746511]
[1738181256713,3.21074,3114.6,3114.0,0.7669]
[1738181256899,3.21078,3114.5,3114.0,0.7669]
[1738181257218,3.0,3115.2,3113.6,0.63946001]
[1738181257420,3.2111,3114.2,3113.5,3.21175]
[1738181257591,3.2112,3114.1,3113.4,3.83948314]
[1738181257934,3.21192,3113.4,3113.3,0.7669]
[1738181258135,3.21182,3113.5,3112.8,4.0326]
[1738181258434,0.8121,3114.6,3112.9,0.55]
[1738181258640,3.21173,3113.6,3112.9,0.55]
[1738181258796,3.2122,3113.2,3112.8,0.8201]
[1738181258992,3.2122,3113.2,3112.4,3.21288]
[1738181258993,3.21222,3113.2,3112.4,3.21288]
[1738181259196,3.21265,3112.7,3112.3,0.7635]
[1738181259520,3.21245,3112.9,3112.3,0.7635]
[1738181259692,3.0,3113.4,3112.3,0.7635]
[1738181259897,3.98587,3113.5,3111.4,0.7767]
[1738181259898,0.015,3113.1,3111.4,0.7767]
[1738181260121,3.21359,3111.8,3111.4,0.7767]
[1738181260526,3.21306,3112.3,3111.4,4.389698]
[1738181260855,3.21332,3112.1,3111.5,3.21381]
[1738181260995,3.21389,3111.5,3110.2,3.21521]
[1738181261195,3.21354,3111.9,3111.1,3.21424]
[1738181261396,3.21368,3111.7,3111.1,3.21424]
[1738181261847,3.21304,3112.4,3111.2,0.7553]
[1738181262139,3.21233,3113.0,3111.2,0.7553]
[1738181262140,0.0075,3112.8,3111.2,0.7553]
[1738181262340,3.21475,3110.7,3110.2,0.7553]
[1738181262558,3.21533,3110.1,3110.0,0.46185488]
[1738181263055,3.21624,3109.3,3108.0,0.7993]
[1738181263202,0.7555,3110.2,3108.6,0.64517578]
[1738181263203,3.7555,3110.2,3108.6,0.64517578]
[1738181263404,3.21611,3109.4,3108.6,0.64517578]
[1738181263644,3.21611,3109.4,3108.0,0.7993]
[1738181263645,6.21545,3110.0,3108.1,3.21739]
[1738181263939,0.7555,3110.2,3108.0,4.0168]
[1738181263940,3.21659,3108.9,3108.0,4.0168]
[1738181264103,3.0,3109.6,3108.0,4.0168]
[1738181264305,3.0,3109.6,3108.0,4.80611595]
[1738181264306,3.21675,3108.8,3108.0,4.80611595]
[1738181264611,3.21631,3109.2,3108.1,3.21739]
[1738181264813,3.0,3109.4,3108.0,1.58861595]
[1738181265146,3.21731,3108.2,3107.4,3.21809]
[1738181265340,3.2171,3108.4,3107.6,3.21789]
[1738181265555,3.21763,3107.9,3107.2,0.64613265]
[1738181265848,3.21764,3107.9,3107.2,3.68288827]
[1738181266017,3.0,3108.5,3107.3,3.21818]
[1738181266216,3.21773,3107.8,3107.1,0.7814]
[1738181266453,3.21765,3107.9,3107.1,0.7814]
[1738181266655,0.7675,3109.2,3107.1,0.7814]
[1738181266956,0.7675,3109.2,3107.1,0.005]
[1738181266957,3.21779,3107.8,3107.1,0.005]
[1738181267253,3.0,3108.2,3107.1,0.005]
[1738181267254,3.21781,3107.7,3107.1,0.005]
[1738181267850,3.21748,3108.1,3107.2,3.21823]
[1738181268018,4.03384,3108.7,3107.2,3.21823]
[1738181268219,3.0,3108.6,3107.3,3.21818]
[1738181268416,3.0,3108.0,3107.3,3.21818]
[1738181268648,6.21752,3108.0,3107.2,0.644174]
[1738181268852,3.0,3108.1,3107.2,0.55]
[1738181269200,3.21763,3107.9,3107.1,3.22342]
[1738181269356,6.21754,3108.0,3107.2,3.21833]
[1738181269516,3.21688,3108.6,3107.4,0.0075]
[1738181269855,4.01679,3109.2,3107.8,0.015]
[1738181270020,3.21699,3108.5,3107.6,3.7754]
[1738181270356,3.21699,3108.5,3107.5,0.7953]
[1738181270357,3.0,3108.8,3107.5,0.7953]
[1738181270559,3.21626,3109.2,3108.2,3.21726]
[1738181270757,0.7601,3109.7,3108.1,0.5575]
[1738181270921,0.7601,3109.7,3107.5,0.7953]
[1738181270922,3.21637,3109.1,3108.3,3.21714]
[1738181271123,3.21597,3109.5,3108.7,3.21677]
[1738181271428,3.21622,3109.3,3108.5,0.7676]
[1738181271641,0.7601,3109.7,3108.5,0.7676]
[1738181271642,3.97586,3109.7,3108.5,0.7676]
[1738181271956,0.7779,3110.2,3108.6,3.76685]
[1738181272159,0.7779,3110.2,3108.5,0.7676]
[1738181272160,3.21618,3109.3,3108.5,0.7676]
[1738181272536,3.2163,3109.2,3108.5,0.7676]
[1738181272731,0.015,3109.6,3108.0,0.7794]
[1738181272943,3.21663,3108.9,3108.0,3.9969]
[1738181273144,3.21669,3108.8,3108.0,0.7794]
[1738181273643,6.99073,3109.2,3108.0,0.7794]
[1738181273832,3.21689,3108.6,3107.6,3.21791]
[1738181274034,3.21689,3108.6,3107.6,3.21785]
[1738181274035,3.2171,3108.4,3107.6,3.21785]
[1738181274229,3.21737,3108.2,3107.5,0.55]
[1738181274550,3.21714,3108.4,3107.7,3.21778]
[1738181274746,3.0,3108.5,3107.8,3.21763]
[1738181274953,3.21691,3108.6,3107.4,0.55]
[1738181275256,3.7744,3109.2,3107.4,0.55]
[1738181275257,0.7744,3109.2,3107.6,0.0075]
[1738181275461,3.99069,3109.2,3108.5,3.21697]
[1738181275634,3.99069,3109.2,3107.5,0.19357103]
[1738181275635,3.21627,3109.2,3108.3,0.7831]
[1738181275837,3.21617,3109.3,3108.5,3.21693]
[1738181276061,3.21638,3109.1,3108.4,3.21707]
[1738181276260,3.21685,3108.7,3108.3,0.7831]
[1738181276579,3.21709,3108.4,3107.8,3.21767]
[1738181276785,3.2173,3108.2,3107.6,0.7831]
[1738181276987,3.21709,3108.4,3107.7,3.21778]
[1738181277389,3.21634,3109.2,3107.7,3.21778]
[1738181277390,4.00831,3109.5,3107.9,3.2176]
[1738181277600,3.21633,3109.2,3108.3,0.55]
[1738181277779,0.7848,3109.5,3108.5,3.21691]
[1738181278098,3.21697,3108.6,3107.7,0.7412341]
[1738181278390,3.2171,3108.4,3107.6,0.7831]
[1738181278691,3.2171,3108.4,3107.8,3.2177]
[1738181278912,3.21691,3108.6,3107.8,3.21771]
[1738181279107,3.21691,3108.6,3107.7,3.7678]
[1738181279253,6.21833,3107.2,3107.1,0.005]
[1738181280401,3.21823,3107.3,3107.1,0.005]
[1738181280581,3.21782,3107.7,3107.1,0.005]
[1738181280798,0.7986,3108.3,3107.7,3.21777]
[1738181281103,3.21615,3109.3,3108.6,3.21685]
[1738181281258,3.21595,3109.5,3108.0,4.0198]
[1738181281259,3.21552,3110.0,3108.5,3.0075]
[1738181281457,3.21543,3110.0,3109.1,0.8023]
[1738181281652,0.16763068,3110.4,3109.1,0.8023]
[1738181281653,3.21512,3110.3,3109.1,0.8023]
[1738181281914,3.21502,3110.4,3109.1,0.8023]
[1738181282052,0.8074,3110.6,3109.1,0.8023]
[1738181282254,3.21502,3110.4,3109.5,3.21593]
[1738181282454,0.8224,3111.1,3109.5,3.21585]
[1738181282688,3.21529,3110.2,3109.5,3.21593]
[1738181282899,3.21465,3110.8,3110.0,3.21534]
[1738181283056,4.0367,3111.1,3110.3,3.21511]
[1738181283255,3.2143,3111.1,3110.3,0.55]
[1738181283503,3.21451,3110.9,3110.3,3.76512]
[1738181283715,3.21393,3111.5,3110.5,0.55]
[1738181283857,3.21384,3111.6,3110.5,0.55]
[1738181283858,3.2143,3111.1,3110.7,0.55]
[1738181284210,3.21419,3111.2,3110.4,3.21493]
[1738181284447,0.751,3111.3,3109.7,0.8246]
[1738181284749,3.21564,3109.8,3109.2,0.8329]
[1738181285057,3.21564,3109.8,3108.8,0.63895687]
[1738181285058,3.21393,3111.5,3109.9,0.55]
[1738181285261,7.22842,3112.2,3111.0,3.21432]
[1738181285462,3.21326,3112.1,3110.8,0.8102]
[1738181285659,0.8021,3112.2,3110.8,0.8102]
[1738181286159,3.21386,3111.6,3111.0,3.21438]
[1738181286445,3.21336,3112.0,3110.8,0.8102]
[1738181286644,3.21395,3111.5,3110.8,4.0248]
[1738181286844,3.21401,3111.4,3110.8,0.8102]
[1738181287045,3.21373,3111.7,3110.9,0.55]
[1738181287243,3.21357,3111.8,3110.9,3.76443]
[1738181287408,0.8021,3112.2,3110.9,1.328932]
[1738181287611,3.21303,3112.4,3111.7,3.76363]
[1738181287820,3.21303,3112.4,3111.0,0.0075]
[1738181287821,3.21256,3112.8,3111.8,3.21353]
[1738181288048,0.8294,3113.2,3111.8,3.76351]
[1738181288222,3.21296,3112.4,3111.8,0.55]
[1738181288424,3.21203,3113.3,3112.3,3.21304]
[1738181288655,3.21203,3113.3,3112.5,0.8114]
[1738181288815,0.8221,3114.3,3112.6,0.55]
[1738181289017,0.8221,3114.3,3113.1,3.21218]
[1738181289018,3.21138,3114.0,3113.1,3.21218]
[1738181289335,3.2109,3114.4,3113.6,0.55]
[1738181289538,3.21068,3114.7,3113.6,0.55]
[1738181289539,3.21072,3114.6,3113.8,3.21147]
[1738181289920,3.21048,3114.8,3113.7,0.55]
[1738181290152,3.21048,3114.8,3113.7,3.76161]
[1738181290355,0.65355902,3115.6,3114.5,3.21077]
[1738181290356,3.21016,3115.2,3114.5,3.21077]
[1738181290555,3.20939,3115.9,3114.3,3.21097]
[1738181290556,0.811,3115.8,3114.3,3.21097]
[1738181290755,3.21027,3115.1,3113.7,0.65175788]
[1738181291051,3.20982,3115.5,3114.0,3.7613]
[1738181291257,0.811,3115.8,3113.9,0.7878]
[1738181291258,3.21111,3114.2,3113.9,0.7878]
[1738181291412,3.2112,3114.1,3113.4,0.7878]
[1738181291619,3.2114,3113.9,3112.9,0.7878]
[1738181291827,3.21233,3113.0,3112.9,0.7878]
[1738181292025,3.21233,3113.0,3112.3,0.7888]
[1738181292225,3.21188,3113.5,3112.3,0.7888]
[1738181292226,3.21293,3112.5,3112.3,0.7888]
[1738181292431,0.0075,3113.6,3112.3,0.7888]
[1738181292625,0.0075,3113.6,3111.8,0.7815]
[1738181292626,3.21315,3112.3,3111.8,0.7815]
[1738181292814,3.21921,3113.6,3111.9,3.21347]
[1738181292815,3.21231,3113.1,3111.9,3.21347]
[1738181293019,3.212,3113.4,3112.6,3.21268]
[1738181293254,3.21171,3113.6,3112.9,0.7815]
[1738181293455,3.21211,3113.3,3112.3,4.00355]
[1738181293627,3.21245,3112.9,3112.3,0.7906]
[1738181293828,3.0,3113.8,3112.3,0.7906]
[1738181293829,3.21288,3112.5,3112.3,0.7906]
[1738181294032,3.21267,3112.7,3112.3,0.7906]
[1738181294234,3.21261,3112.8,3111.6,0.7906]
[1738181294426,3.21299,3112.4,3111.6,0.7906]
[1738181294956,3.21299,3112.4,3111.6,4.00435]
[1738181295159,0.8314,3113.3,3111.7,0.55]
[1738181295160,3.21306,3112.3,3111.7,0.55]
[1738181295315,3.21261,3112.8,3111.8,0.0075]
[1738181295516,3.21183,3113.5,3112.0,0.015]
[1738181295750,3.21161,3113.7,3112.2,4.3213]
[1738181295951,3.21155,3113.8,3113.1,1.3063]
[1738181296259,3.21112,3114.2,3113.5,0.55]
[1738181296455,4.03866,3114.8,3113.1,3.96844]
[1738181296456,3.21141,3113.9,3113.1,3.96844]
[1738181296623,3.0,3114.7,3113.1,3.96844]
[1738181296624,0.0075,3114.7,3113.1,0.7563]
[1738181296823,0.0075,3114.7,3112.4,0.8305]
[1738181296824,3.21212,3113.2,3112.4,0.8305]
[1738181297161,3.21161,3113.8,3113.0,3.21226]
[1738181297462,3.21128,3114.1,3113.4,0.8199]
[1738181297630,0.8281,3114.8,3113.4,0.8199]
[1738181297631,3.0,3114.4,3113.4,0.8199]
[1738181297831,3.21126,3114.1,3113.4,0.8199]
[1738181298356,3.21111,3114.2,3113.5,3.76181]
[1738181298656,3.0,3114.5,3113.4,0.8199]
[1738181298855,3.21127,3114.1,3113.4,0.8199]
[1738181299061,3.2109,3114.4,3113.5,3.76174]
[1738181299301,3.20986,3115.4,3114.6,3.21062]
[1738181299567,3.20986,3115.4,3114.5,0.7702]
[1738181299568,3.20955,3115.7,3114.5,0.7702]
[1738181299748,3.21019,3115.1,3114.5,0.7702]
[1738181300256,3.21022,3115.1,3114.5,0.7702]
[1738181300457,3.20956,3115.7,3114.8,3.21047]
[1738181300665,3.20944,3115.8,3115.0,0.55]
[1738181300958,3.20966,3115.6,3115.0,0.55]
[1738181301456,3.20923,3116.1,3115.4,3.20976]
[1738181301663,3.2086,3116.7,3115.4,0.7627]
[1738181301827,3.20862,3116.6,3115.7,0.55]
[1738181302024,3.20817,3117.1,3115.9,0.55]
[1738181302025,3.20873,3116.5,3115.9,0.55]
[1738181302227,3.2085,3116.8,3115.9,3.75934]
[1738181302441,3.20863,3116.6,3115.9,3.75934]
[1738181302655,3.20863,3116.6,3115.9,0.55]
[1738181302859,3.20826,3117.0,3115.6,3.20959]
[1738181303085,3.0,3117.1,3115.7,0.620959]
[1738181303271,3.20825,3117.0,3115.9,3.20934]
[1738181303472,3.20871,3116.6,3115.9,3.20934]
[1738181303649,3.20835,3116.9,3115.4,1.39303215]
[1738181303846,3.20708,3118.1,3117.1,3.20809]
[1738181304050,0.7562,3118.2,3117.1,0.55]
[1738181304284,3.20758,3117.7,3117.1,0.55]
[1738181304482,3.20759,3117.7,3117.0,4.02199]
[1738181304686,0.7562,3118.2,3117.0,0.8138]
[1738181304687,3.20762,3117.6,3117.0,0.8138]
[1738181304871,3.20708,3118.1,3117.0,0.8138]
[1738181305075,0.005,3118.4,3117.3,0.55]
[1738181305264,3.20751,3117.7,3117.0,4.02196]
[1738181305449,3.20753,3117.7,3117.0,0.8138]
[1738181305645,3.2069,3118.3,3117.2,3.208]
[1738181305846,0.005,3118.4,3117.0,3.8138]
[1738181306052,0.005,3118.4,3117.6,3.20758]